fUST/lending_fUST_20260222
["ID","MTS","AMOUNT","RATE_DAILY","PERIOD"]
[406305803,1771713046146,-500.0,0.00019111,2]
[406305804,1771713046155,-500.0,0.00019111,2]
[406305805,1771713046165,-500.0,0.00019111,2]
[406305806,1771713046174,-617.08105063,0.00019111,2]
[406305807,1771713046184,-360.0,0.00019111,2]
[406305808,1771713046193,-370.0,0.00019111,2]
[406305809,1771713046202,-500.0,0.00019111,2]
[406305810,1771713046211,-500.0,0.00019111,2]
[406305811,1771713046221,-500.0,0.00019111,2]
[406305812,1771713046231,-500.0,0.00019111,2]
[406305813,1771713046240,-290.1286054,0.00019111,2]
[406305814,1771713046250,-500.0,0.00019111,2]
[406305815,1771713046259,-500.0,0.00019111,2]
[406305816,1771713046268,-284.16821276,0.00019111,2]
[406305817,1771713480376,191.38,6.893e-05,2]
[406305829,1771714231830,-682.01,0.00015828,2]
[406305830,1771714231841,-1593.25434795,0.00015828,2]
[406305831,1771714231852,-2724.73565205,0.00015828,2]
[406305832,1771714231861,-358.63987091,0.00015988,2]
[406305888,1771714240381,-3321.82067958,0.00015828,2]
[406305889,1771714240443,-1678.17932042,0.00015828,2]
[406305890,1771714240452,-974.48974738,0.00015988,2]
[406305891,1771714240463,-495.840245,0.00015988,2]
[406305912,1771714245924,-3171.03013671,0.00015988,2]
[406305913,1771714245933,-582.54747929,0.0001615,2]
[406305914,1771714245983,-1700.0,0.0001615,2]
[406305915,1771714246119,-2717.45252071,0.0001615,2]
[406305916,1771714246130,-300.0,0.00016477,2]
[406305917,1771714246140,-300.0,0.00016477,2]
[406305918,1771714246150,-200.0,0.00017909,2]
[406305919,1771714246159,-222.14081993,0.00017938,2]
[406305920,1771714246168,-300.0,0.00018125,2]
[406305921,1771714246177,-151.0,0.00018125,2]
[406305922,1771714246187,-500.0,0.00018125,2]
[406305923,1771714246196,-500.0,0.00018125,2]
[406305924,1771714246205,-500.0,0.00018125,2]
[406305925,1771714246215,-500.0,0.00018125,2]
[406305926,1771714246224,-500.0,0.00018125,2]
[406305927,1771714246233,-186.0,0.00018125,2]
[406305928,1771714246243,-500.0,0.00018125,2]
[406305929,1771714246252,-500.0,0.00018125,2]
[406305930,1771714246261,-500.0,0.00018125,2]
[406305931,1771714246271,-500.0,0.00018125,2]
[406305932,1771714246279,-500.0,0.00018125,2]
[406305933,1771714246289,-500.0,0.00018125,2]
[406305934,1771714246298,-500.0,0.00018125,2]
[406305935,1771714246307,-500.0,0.00018125,2]
[406305936,1771714246316,-500.0,0.00018125,2]
[406305937,1771714246325,-500.0,0.00018125,2]
[406305938,1771714246423,-500.0,0.00018125,2]
[406305939,1771714246433,-500.0,0.00018125,2]
[406305940,1771714246442,-500.0,0.00018125,2]
[406305941,1771714246451,-500.0,0.00018125,2]
[406305942,1771714246461,-500.0,0.00018125,2]
[406305943,1771714246470,-561.70810506,0.00018125,2]
[406305944,1771714246479,-150.0,0.00018126,2]
[406305945,1771714246489,-151.09031229,0.00018126,2]
[406305946,1771714246498,-175.20052986,0.00018126,2]
[406305947,1771714246508,-217.68001455,0.00018126,2]
[406305948,1771714246517,-238.79272384,0.00018126,2]
[406305949,1771714246527,-150.0,0.00018126,2]
[406305950,1771714246536,-150.0,0.00018126,2]
[406305951,1771714246545,-150.0,0.00018126,2]
[406305952,1771714246556,-151.0,0.00018126,2]
[406305953,1771714246565,-29163.37450934,0.00018126,2]
[406305954,1771714246574,-150.0,0.00018181,2]
[406305955,1771714246583,-200.4215101,0.00018181,2]
[406305956,1771714246592,-151.0,0.00018183,2]
[406305957,1771714246601,-151.0,0.00018183,2]
[406305958,1771714246611,-254.874159,0.00018183,2]
[406305959,1771714246619,-254.874159,0.00018183,2]
[406305960,1771714246628,-254.874159,0.00018183,2]
[406305961,1771714246638,-254.874159,0.00018183,2]
[406305962,1771714246648,-290.039374,0.00018183,2]
[406305963,1771714246657,-290.039374,0.00018183,2]
[406305964,1771714246666,-290.039374,0.00018183,2]
[406305965,1771714246675,-290.039374,0.00018183,2]
[406305966,1771714246684,-151.0,0.00018183,2]
[406305967,1771714246694,-151.0,0.00018183,2]
[406305968,1771714246703,-151.0,0.00018183,2]
[406305969,1771714246712,-151.0,0.00018183,2]
[406305970,1771714246721,-151.0,0.00018184,2]
[406305971,1771714246730,-153.497272,0.00018184,2]
[406305972,1771714246739,-254.874159,0.00018184,2]
[406305973,1771714246749,-254.874159,0.00018184,2]
[406305974,1771714246758,-254.874159,0.00018184,2]
[406305975,1771714246768,-254.874159,0.00018184,2]
[406305976,1771714246777,-290.039374,0.00018184,2]
[406305977,1771714246785,-290.039374,0.00018184,2]
[406305978,1771714246795,-290.039374,0.00018184,2]
[406305979,1771714246804,-290.039374,0.00018184,2]
[406305980,1771714246813,-151.0,0.00018184,2]
[406305981,1771714246822,-151.0,0.00018184,2]
[406305982,1771714246831,-151.0,0.00018184,2]
[406305983,1771714246840,-151.0,0.00018184,2]
[406305984,1771714246849,-151.0,0.00018393,2]
[406305985,1771714246859,-151.0,0.00018393,2]
[406305986,1771714246868,-151.0,0.00018393,2]
[406305987,1771714246877,-151.0,0.00018393,2]
[406305988,1771714246887,-151.0,0.00018393,2]
[406305989,1771714246896,-151.0,0.00018393,2]
[406305990,1771714246905,-151.0,0.00018393,2]
[406305991,1771714246914,-195.69406081,0.00018393,2]
[406305992,1771714246923,-151.0,0.000184,2]
[406305993,1771714246932,-151.0,0.000184,2]
[406305994,1771714246941,-151.0,0.000184,2]
[406305995,1771714246950,-151.410447,0.000184,2]
[406305996,1771714246959,-500.0,0.00018401,2]
[406305997,1771714246969,-252.47460006,0.00018401,2]
[406305998,1771714246979,-500.0,0.00018401,2]
[406305999,1771714246988,-500.0,0.00018403,2]
[406306000,1771714246997,-500.0,0.00018403,2]
[406306001,1771714247006,-299.04401097,0.00018403,2]
[406306002,1771714247015,-151.0,0.00018404,2]
[406306003,1771714247024,-342.36553434,0.00018404,2]
[406306004,1771714247034,-245.054398,0.00018404,2]
[406306005,1771714247043,-151.0,0.00018404,2]
[406306006,1771714247052,-254.874159,0.00018404,2]
[406306007,1771714247061,-254.874159,0.00018404,2]
[406306008,1771714247071,-254.874159,0.00018404,2]
[406306009,1771714247080,-254.874159,0.00018404,2]
[406306010,1771714247089,-290.039374,0.00018404,2]
[406306011,1771714247098,-290.039374,0.00018404,2]
[406306012,1771714247107,-290.039374,0.00018404,2]
[406306013,1771714247116,-290.039374,0.00018404,2]
[406306014,1771714247125,-151.0,0.00018404,2]
[406306015,1771714247134,-151.0,0.00018404,2]
[406306016,1771714247143,-151.0,0.00018404,2]
[406306017,1771714247152,-151.0,0.00018404,2]
[406306018,1771714247161,-151.0,0.00018404,2]
[406306019,1771714247170,-151.0,0.00018404,2]
[406306020,1771714247179,-151.0,0.00018404,2]
[406306021,1771714247188,-151.0,0.00018404,2]
[406306022,1771714247198,-170.187535,0.00018404,2]
[406306023,1771714247206,-37754.21457301,0.00018404,2]
[406306025,1771714805110,152.49,6.9e-05,2]
[406306026,1771714805572,152.49,6.9e-05,2]
[406306027,1771714806039,152.49,6.9e-05,2]
[406306028,1771714806607,152.49,6.9e-05,2]
[406306029,1771714807167,152.49,7e-05,2]
[406306030,1771714807732,152.49,7e-05,2]
[406306031,1771714808274,152.49,7e-05,2]
[406306032,1771714808817,152.49,7e-05,2]
[406306033,1771714809400,152.49,7e-05,2]
[406306034,1771714809929,152.49,7e-05,2]
[406306035,1771714810481,152.49,7.1e-05,2]
[406306036,1771714811045,152.49,7.1e-05,2]
[406306037,1771714811616,152.49,7.1e-05,2]
[406306038,1771714812168,152.49,7.1e-05,2]
[406306039,1771714812710,152.49,7.1e-05,2]
[406306040,1771714813260,152.49,7.1e-05,2]
[406306041,1771714813804,152.49,7.2e-05,2]
[406306042,1771714814362,152.49,7.2e-05,2]
[406306043,1771714814932,152.49,7.2e-05,2]
[406306044,1771714815503,152.49,7.2e-05,2]
[406306045,1771714815959,152.49,7.2e-05,2]
[406306046,1771714816534,152.49,7.2e-05,2]
[406306047,1771714817696,152.49,7.2e-05,2]
[406306048,1771714818288,152.49,7.3e-05,2]
[406306049,1771714818998,152.49,7.3e-05,2]
[406306050,1771714819468,152.49,7.3e-05,2]
[406306051,1771714819939,152.49,7.3e-05,2]
[406306052,1771714821021,152.49,7.3e-05,2]
[406306053,1771714821600,152.49,7.3e-05,2]
[406306054,1771714822154,152.49,7.4e-05,2]
[406306055,1771714822763,152.49,7.4e-05,2]
[406306056,1771714823335,152.49,7.4e-05,2]
[406306057,1771714823921,152.49,7.4e-05,2]
[406306058,1771714824408,152.49,7.4e-05,2]
[406306059,1771714825051,152.49,7.4e-05,2]
[406306060,1771714825497,152.49,7.4e-05,2]
[406306061,1771714826064,152.49,7.5e-05,2]
[406306062,1771714826627,152.49,7.5e-05,2]
[406306063,1771714827190,152.49,7.5e-05,2]
[406306064,1771714827661,152.49,7.5e-05,2]
[406306065,1771714828222,152.49,7.5e-05,2]
[406306066,1771714828859,152.49,7.5e-05,2]
[406306067,1771714829429,152.49,7.6e-05,2]
[406306068,1771714829980,152.49,7.6e-05,2]
[406306069,1771714830563,152.49,7.6e-05,2]
[406306070,1771714919450,-1196.41083329,0.0001616,2]
[406306071,1771714919463,-3803.58916671,0.0001616,2]
[406306072,1771714919473,-187.61,0.00016262,7]
[406306073,1771714919482,-1008.80083329,0.00016323,2]
[406306114,1771715432087,-205.39,0.00014508,7]
[406306116,1771715432097,-689.38170499,0.00014733,2]
[406306118,1771715432108,-405.52290954,0.00014733,2]
[406306178,1771715443391,-2108.35718064,0.00014733,2]
[406306179,1771715443618,-500.0,0.00014733,2]
[406306185,1771715446308,-1296.73820483,0.00014733,2]
[406306186,1771715446317,-1508.39930004,0.00014882,2]
[406306187,1771715446354,-3491.60069996,0.00014882,2]
[406306188,1771715446363,-634.0,0.00014882,2]
[406306189,1771715446373,-1200.0,0.00015031,2]
[406306190,1771715446382,-5000.0,0.00015032,2]
[406306191,1771715446391,-158.0,0.00015183,2]
[406306192,1771715446400,-300.0,0.00015183,2]
[406306193,1771715446410,-150.0,0.00015492,2]
[406306194,1771715446419,-298.95082075,0.000156,2]
[406306195,1771715446429,-349.25008059,0.000156,2]
[406306196,1771715446438,-168.50993651,0.000156,2]
[406306197,1771715446447,-166.0,0.00016164,2]
[406306198,1771715446457,-166.0,0.00016164,3]
[406306199,1771715446466,-200.0,0.00016164,3]
[406306200,1771715446475,-155.0,0.0001645,2]
[406306201,1771715446484,-10000.0,0.00016451,2]
[406306202,1771715446493,-298.95082075,0.00016569,9]
[406306203,1771715446503,-158.427375,0.00017165,2]
[406306204,1771715446512,-158.427375,0.00017165,16]
[406306205,1771715446522,-158.427375,0.00017165,31]
[406306206,1771715446531,-158.427375,0.00017165,46]
[406306207,1771715446541,-158.427375,0.00017165,61]
[406306208,1771715446550,-158.427375,0.00017165,75]
[406306209,1771715446559,-158.427375,0.00017165,90]
[406306210,1771715446568,-158.427375,0.00017165,105]
[406306211,1771715446577,-158.427375,0.00017165,120]
[406306212,1771715446586,-210.0752639,0.00017492,2]
[406306213,1771715446596,-349.25008059,0.00017539,17]
[406306214,1771715446605,-298.95082075,0.00017539,17]
[406306215,1771715446614,-208.70215394,0.00017758,2]
[406306216,1771715446623,-434.41665048,0.00017971,2]
[406306217,1771715446632,-537.19066052,0.00018081,2]
[406306218,1771715446641,-500.0,0.00018081,2]
[406306219,1771715446650,-500.0,0.00018081,2]
[406306220,1771715446659,-500.0,0.00018081,2]
[406306221,1771715446668,-500.0,0.00018081,2]
[406306222,1771715446677,-500.0,0.00018081,2]
[406306223,1771715446686,-340.18978945,0.00018081,2]
[406306224,1771715446696,-354.0,0.00018081,2]
[406306225,1771715446705,-500.0,0.00018081,2]
[406306226,1771715446715,-500.0,0.00018081,2]
[406306227,1771715446724,-500.0,0.00018081,2]
[406306228,1771715446733,-500.0,0.00018081,2]
[406306229,1771715446742,-500.0,0.00018081,2]
[406306230,1771715446751,-500.0,0.00018081,2]
[406306231,1771715446760,-500.0,0.00018081,2]
[406306232,1771715446774,-500.0,0.00018081,2]
[406306233,1771715446783,-500.0,0.00018081,2]
[406306234,1771715446795,-500.0,0.00018081,2]
[406306235,1771715446806,-89.51612245,0.00018081,2]
[406306293,1771716632224,-305.54513982,0.00012587,2]
[406306403,1771716638417,-4694.45486018,0.00012587,2]
[406306404,1771716638427,-5000.0,0.00012714,2]
[406306405,1771716638436,-1248.724178,0.00012842,2]
[406306406,1771716638445,-300.0,0.00013102,2]
[406306407,1771716638454,-300.0,0.00013102,2]
[406306408,1771716638462,-1200.0,0.00013102,2]
[406306409,1771716638471,-300.0,0.00013102,2]
[406306410,1771716638481,-300.0,0.0001338,2]
[406306411,1771716638490,-513.321453,0.00013381,2]
[406306412,1771716638500,-150.0,0.00013436,2]
[406306413,1771716638509,-350.93,0.000142,2]
[406306414,1771716638518,-250.0,0.00015093,2]
[406306415,1771716638527,-2679.23561223,0.00015497,2]
[406306416,1771716638537,-500.0,0.00015595,2]
[406306417,1771716638546,-500.0,0.00015595,2]
[406306418,1771716638555,-500.0,0.00015595,2]
[406306419,1771716638565,-500.0,0.00015595,2]
[406306420,1771716638575,-500.0,0.00015595,2]
[406306421,1771716638584,-500.0,0.00015595,2]
[406306422,1771716638593,-500.0,0.00015595,2]
[406306423,1771716638602,-500.0,0.00015595,2]
[406306424,1771716638611,-500.0,0.00015595,2]
[406306425,1771716638620,-500.0,0.00015595,2]
[406306426,1771716638630,-500.0,0.00015595,2]
[406306427,1771716638639,-500.0,0.00015595,2]
[406306428,1771716638648,-500.0,0.00015595,2]
[406306429,1771716638657,-500.0,0.00015595,2]
[406306430,1771716638666,-500.0,0.00015595,2]
[406306431,1771716638675,-500.0,0.00015595,2]
[406306432,1771716638685,-500.0,0.00015595,2]
[406306433,1771716638694,-500.0,0.00015595,2]
[406306434,1771716638703,-500.0,0.00015595,2]
[406306435,1771716638713,-500.0,0.00015595,2]
[406306436,1771716638723,-500.0,0.00015595,2]
[406306437,1771716638732,-500.0,0.00015595,2]
[406306438,1771716638741,-500.0,0.00015595,2]
[406306439,1771716638751,-500.0,0.00015595,2]
[406306440,1771716638760,-500.0,0.00015595,2]
[406306441,1771716638769,-500.0,0.00015595,2]
[406306442,1771716638778,-500.0,0.00015595,2]
[406306443,1771716638788,-500.0,0.00015595,2]
[406306444,1771716638797,-500.0,0.00015595,2]
[406306445,1771716638807,-500.0,0.00015595,2]
[406306446,1771716638816,-500.0,0.00015595,2]
[406306447,1771716638826,-523.51245401,0.00015595,2]
[406306448,1771716638835,-500.0,0.00015595,2]
[406306449,1771716638845,-500.0,0.00015595,2]
[406306450,1771716638855,-500.0,0.00015595,2]
[406306451,1771716638864,-417.74982466,0.00015595,2]
[406306452,1771716638874,-500.0,0.00015595,2]
[406306453,1771716638883,-500.0,0.00015595,2]
[406306454,1771716638892,-500.0,0.00015595,2]
[406306455,1771716638901,-500.0,0.00015595,2]
[406306456,1771716638911,-500.0,0.00015595,2]
[406306457,1771716638921,-500.0,0.00015595,2]
[406306458,1771716638930,-500.0,0.00015595,2]
[406306459,1771716638939,-500.0,0.00015595,2]
[406306460,1771716638948,-500.0,0.00015595,2]
[406306461,1771716638958,-500.0,0.00015595,2]
[406306462,1771716638967,-500.0,0.00015595,2]
[406306463,1771716638976,-500.0,0.00015595,2]
[406306464,1771716639070,-500.0,0.00015595,2]
[406306465,1771716639080,-500.0,0.00015595,2]
[406306466,1771716639090,-500.0,0.00015595,2]
[406306467,1771716639100,-500.0,0.00015595,2]
[406306468,1771716639109,-500.0,0.00015595,2]
[406306469,1771716639119,-500.0,0.00015595,2]
[406306470,1771716639128,-500.0,0.00015595,2]
[406306471,1771716639138,-500.0,0.00015595,2]
[406306472,1771716639147,-500.0,0.00015595,2]
[406306473,1771716639157,-500.0,0.00015595,2]
[406306474,1771716639167,-500.0,0.00015595,2]
[406306475,1771716639178,-500.0,0.00015595,2]
[406306476,1771716639193,-500.0,0.00015595,2]
[406306477,1771716639202,-500.0,0.00015595,2]
[406306478,1771716639211,-500.0,0.00015595,2]
[406306479,1771716639223,-500.0,0.00015595,2]
[406306480,1771716639232,-500.0,0.00015595,2]
[406306481,1771716639241,-500.0,0.00015595,2]
[406306482,1771716639252,-500.0,0.00015595,2]
[406306483,1771716639261,-500.0,0.00015595,2]
[406306484,1771716639271,-500.0,0.00015595,2]
[406306485,1771716639280,-500.0,0.00015595,2]
[406306486,1771716639289,-500.0,0.00015595,2]
[406306487,1771716639298,-500.0,0.00015595,2]
[406306488,1771716639307,-500.0,0.00015595,2]
[406306489,1771716639317,-500.0,0.00015595,2]
[406306490,1771716639326,-500.0,0.00015595,2]
[406306491,1771716639336,-500.0,0.00015595,2]
[406306492,1771716639345,-500.0,0.00015595,2]
[406306493,1771716639355,-500.0,0.00015595,2]
[406306494,1771716639364,-500.0,0.00015595,2]
[406306495,1771716639379,-500.0,0.00015595,2]
[406306496,1771716639389,-500.0,0.00015595,2]
[406306497,1771716639399,-500.0,0.00015595,2]
[406306498,1771716639408,-500.0,0.00015595,2]
[406306499,1771716639419,-500.0,0.00015595,2]
[406306500,1771716639429,-500.0,0.00015595,2]
[406306501,1771716639439,-500.0,0.00015595,2]
[406306502,1771716639450,-500.0,0.00015595,2]
[406306503,1771716639459,-500.0,0.00015595,2]
[406306504,1771716639471,-500.0,0.00015595,2]
[406306505,1771716639480,-500.0,0.00015595,2]
[406306506,1771716639489,-500.0,0.00015595,2]
[406306507,1771716639501,-500.0,0.00015595,2]
[406306508,1771716639511,-500.0,0.00015595,2]
[406306509,1771716639522,-500.0,0.00015595,2]
[406306510,1771716639532,-500.0,0.00015595,2]
[406306511,1771716639542,-500.0,0.00015595,2]
[406306512,1771716639551,-500.0,0.00015595,2]
[406306513,1771716639560,-291.16413511,0.00015595,2]
[406306514,1771716639569,-500.0,0.00015595,2]
[406306515,1771716639578,-500.0,0.00015595,2]
[406306516,1771716639588,-500.0,0.00015595,2]
[406306517,1771716639597,-500.0,0.00015595,2]
[406306518,1771716639606,-500.0,0.00015595,2]
[406306519,1771716639616,-500.0,0.00015595,2]
[406306520,1771716639625,-500.0,0.00015595,2]
[406306521,1771716639634,-831.45935568,0.00015595,2]
[406306522,1771716639642,-500.0,0.00015595,2]
[406306523,1771716639652,-500.0,0.00015595,2]
[406306524,1771716639661,-831.45935568,0.00015595,2]
[406306525,1771716639670,-600.0,0.00015595,2]
[406306526,1771716639679,-500.0,0.00015595,2]
[406306527,1771716639688,-831.45935568,0.00015595,2]
[406306528,1771716639697,-500.0,0.00015595,2]
[406306529,1771716639706,-500.0,0.00015595,2]
[406306530,1771716639715,-831.45935568,0.00015595,2]
[406306531,1771716639724,-500.0,0.00015595,2]
[406306532,1771716639733,-500.0,0.00015595,2]
[406306533,1771716639742,-831.45935568,0.00015595,2]
[406306534,1771716639751,-500.0,0.00015595,2]
[406306535,1771716639761,-831.45935568,0.00015595,2]
[406306536,1771716639770,-500.0,0.00015595,2]
[406306537,1771716639779,-831.45935568,0.00015595,2]
[406306538,1771716639788,-831.45935568,0.00015595,2]
[406306539,1771716639797,-500.0,0.00015595,2]
[406306540,1771716639807,-500.0,0.00015595,2]
[406306541,1771716639816,-831.45935568,0.00015595,2]
[406306542,1771716639825,-500.0,0.00015595,2]
[406306543,1771716639835,-831.45935568,0.00015595,2]
[406306544,1771716639844,-500.0,0.00015595,2]
[406306545,1771716639854,-831.45935568,0.00015595,2]
[406306546,1771716639863,-500.0,0.00015595,2]
[406306547,1771716639872,-831.45935568,0.00015595,2]
[406306548,1771716639882,-500.0,0.00015595,2]
[406306549,1771716639891,-831.45935568,0.00015595,2]
[406306550,1771716639900,-500.0,0.00015595,2]
[406306551,1771716639910,-831.45935568,0.00015595,2]
[406306552,1771716639920,-407.232641,0.00015595,2]
[406306553,1771716639928,-831.45935568,0.00015595,2]
[406306554,1771716639938,-500.0,0.00015595,2]
[406306555,1771716639947,-500.0,0.00015595,2]
[406306556,1771716639956,-831.45935568,0.00015595,2]
[406306557,1771716639965,-831.45935568,0.00015595,2]
[406306558,1771716639974,-500.0,0.00015595,2]
[406306559,1771716639983,-831.45935568,0.00015595,2]
[406306560,1771716639992,-500.0,0.00015595,2]
[406306561,1771716640001,-831.45935568,0.00015595,2]
[406306562,1771716640011,-500.0,0.00015595,2]
[406306563,1771716640020,-831.45935568,0.00015595,2]
[406306564,1771716640030,-500.0,0.00015595,2]
[406306565,1771716640039,-831.45935568,0.00015595,2]
[406306566,1771716640049,-831.45935568,0.00015595,2]
[406306567,1771716640058,-831.45935568,0.00015595,2]
[406306568,1771716640068,-831.45935568,0.00015595,2]
[406306569,1771716640077,-831.45935568,0.00015595,2]
[406306570,1771716640087,-831.45935568,0.00015595,2]
[406306571,1771716640096,-831.45935568,0.00015595,2]
[406306572,1771716640106,-831.45935568,0.00015595,2]
[406306573,1771716640115,-831.45935568,0.00015595,2]
[406306574,1771716640125,-831.45935568,0.00015595,2]
[406306575,1771716640134,-831.45935568,0.00015595,2]
[406306576,1771716640144,-831.45935568,0.00015595,2]
[406306577,1771716640153,-831.45935568,0.00015595,2]
[406306578,1771716640163,-831.45935568,0.00015595,2]
[406306579,1771716640172,-831.45935568,0.00015595,2]
[406306580,1771716640185,-795.08300888,0.00015595,2]
[406306581,1771716640194,-795.08300888,0.00015595,2]
[406306582,1771716640203,-795.08300888,0.00015595,2]
[406306583,1771716640212,-795.08300888,0.00015595,2]
[406306585,1771716640223,-795.08300888,0.00015595,2]
[406306587,1771716640232,-795.08300888,0.00015595,2]
[406306588,1771716640241,-795.08300888,0.00015595,2]
[406306589,1771716640252,-795.08300888,0.00015595,2]
[406306590,1771716640262,-795.08300888,0.00015595,2]
[406306591,1771716640272,-795.08300888,0.00015595,2]
[406306592,1771716640281,-795.08300888,0.00015595,2]
[406306593,1771716640290,-795.08300888,0.00015595,2]
[406306594,1771716640299,-795.08300888,0.00015595,2]
[406306595,1771716640308,-795.08300888,0.00015595,2]
[406306596,1771716640318,-795.08300888,0.00015595,2]
[406306597,1771716640328,-795.08300881,0.00015595,2]
[406306598,1771716640338,-33985.269251,0.00015596,2]
[406306610,1771716645345,-1768.69806365,0.00015596,2]
[406306612,1771716645356,-504.18517485,0.00015596,2]
[406306616,1771716645408,-652.25,0.00015596,2]
[406306617,1771716645421,-722.0,0.00015596,2]
[406306618,1771716645470,-302.0,0.00015596,2]
[406306630,1771716646307,-996.06194815,0.00015596,2]
[406306631,1771716646317,-222.0,0.000156,2]
[406306632,1771716646326,-151.0,0.00016438,2]
[406306633,1771716646335,-151.0,0.00016438,2]
[406306634,1771716646344,-266.763122,0.0001645,2]
[406306635,1771716646353,-500.0,0.0001645,2]
[406306636,1771716646363,-155.08452698,0.0001645,2]
[406306637,1771716646372,-500.0,0.0001645,2]
[406306638,1771716646381,-487.01760526,0.0001645,2]
[406306639,1771716646391,-151.0,0.0001769,2]
[406306640,1771716646400,-151.0,0.0001769,2]
[406306641,1771716646409,-164.65396,0.0001769,2]
[406306642,1771716646419,-7242.38541547,0.00018,2]
[406306643,1771716646428,-151.0,0.00018079,2]
[406306644,1771716646437,-151.0,0.00018079,2]
[406306645,1771716646446,-151.0,0.00018079,2]
[406306646,1771716646455,-151.0,0.00018079,2]
[406306647,1771716646464,-163.92118,0.00018079,2]
[406306648,1771716646473,-542.65094501,0.0001808,2]
[406306649,1771716646482,-500.0,0.0001808,2]
[406306650,1771716646491,-446.58,0.00018082,2]
[406306651,1771716646500,-200.0,0.00018082,3]
[406306652,1771716646509,-754.750751,0.00018143,2]
[406306653,1771716646518,-288.0,0.00018146,2]
[406306654,1771716646528,-199.0,0.00018146,2]
[406306655,1771716646536,-199.0,0.00018146,3]
[406306656,1771716646546,-222.0,0.00018218,2]
[406306657,1771716646556,-188.0,0.00018404,2]
[406306658,1771716646567,-151.0,0.00018404,2]
[406306659,1771716646576,-151.0,0.00018404,2]
[406306660,1771716646585,-151.0,0.00018404,2]
[406306661,1771716646595,-151.0,0.00018404,2]
[406306662,1771716646604,-151.0,0.00018404,2]
[406306663,1771716646615,-151.0,0.00018404,2]
[406306664,1771716646701,-469.84837486,0.00018404,2]
[406306665,1771716646711,-1095.53409594,0.00018404,2]
[406306666,1771716646720,-28265.28117533,0.00018404,2]
[406306668,1771716699600,-3373.24767426,0.00015286,2]
[406306669,1771717805292,152.03,6.9e-05,2]
[406306670,1771717805846,152.03,6.9e-05,2]
[406306671,1771717806444,152.03,6.9e-05,2]
[406306672,1771717807056,152.03,7e-05,2]
[406306673,1771717807596,152.03,7e-05,2]
[406306674,1771717808194,152.03,7e-05,2]
[406306675,1771717808722,152.03,7e-05,2]
[406306676,1771717809316,152.03,7e-05,2]
[406306677,1771717809935,152.03,7e-05,2]
[406306678,1771717810407,152.03,7.1e-05,2]
[406306679,1771717810993,152.03,7.1e-05,2]
[406306680,1771717811473,152.03,7.1e-05,2]
[406306681,1771717812032,152.03,7.1e-05,2]
[406306682,1771717812741,152.03,7.1e-05,2]
[406306683,1771717813213,152.03,7.2e-05,2]
[406306684,1771717813892,152.03,7.2e-05,2]
[406306685,1771717814441,152.03,7.2e-05,2]
[406306686,1771717814991,152.03,7.2e-05,2]
[406306687,1771717815549,152.03,7.2e-05,2]
[406306688,1771717816016,152.03,7.2e-05,2]
[406306689,1771717816560,152.03,7.3e-05,2]
[406306690,1771717817162,152.03,7.3e-05,2]